[Event "Titled Tuesday Blitz March 21 Late 2023"]
[White "Meunier-Pion, Jean"]
[Black "Khatena, Moshe"]
[WhiteFideId "20685327"]
[BlackFideId "2010461"]
[WhiteElo "2124"]
[BlackElo "2212"]
[Result "1-0"]
[Round "04"]
[TimeControl "180+2"]
[Date "2023.03.21"]
[WhiteClock "0:00:08"]
[BlackClock "0:00:22"]

1. e4 {[%clk 0:03:00]}  Nf6 {[%clk 0:02:58]} 2. e5 {[%clk 0:03:00]}  Nd5 {[%clk 0:02:56]} 3. d4 {[%clk 0:03:01]}  d6 {[%clk 0:02:55]} 4. Nf3 {[%clk 0:03:01]}  g6 {[%clk 0:02:55]} 5. Bc4 {[%clk 0:02:59]}  Nb6 {[%clk 0:02:55]} 6. Bb3 {[%clk 0:02:58]}  Bg7 {[%clk 0:02:55]} 7. e6 {[%clk 0:02:52]}  Bxe6 {[%clk 0:02:39]} 8. Bxe6 {[%clk 0:02:52]}  fxe6 {[%clk 0:02:39]} 9. h4 {[%clk 0:02:51]}  O-O {[%clk 0:02:19]} 10. h5 {[%clk 0:02:52]}  Nc6 {[%clk 0:02:08]} 11. hxg6 {[%clk 0:02:46]}  hxg6 {[%clk 0:02:09]} 12. Qd3 {[%clk 0:02:47]}  Qe8 {[%clk 0:02:05]} 13. c3 {[%clk 0:02:22]}  Nd5 {[%clk 0:01:57]} 14. Ng5 {[%clk 0:02:17]}  Rf5 {[%clk 0:01:24]} 15. Qh3 {[%clk 0:02:10]}  Rxg5 {[%clk 0:01:23]} 16. Bxg5 {[%clk 0:02:08]}  Qf7 {[%clk 0:01:18]} 17. Nd2 {[%clk 0:01:57]}  Nf6 {[%clk 0:01:13]} 18. O-O-O {[%clk 0:01:51]}  e5 {[%clk 0:01:02]} 19. Bxf6 {[%clk 0:01:32]}  exf6 {[%clk 0:00:54]} 20. Qh7+ {[%clk 0:01:00]}  Kf8 {[%clk 0:00:53]} 21. dxe5 {[%clk 0:00:58]}  Nxe5 {[%clk 0:00:52]} 22. Kb1 {[%clk 0:00:57]}  Ke7 {[%clk 0:00:47]} 23. Qh3 {[%clk 0:00:48]}  Re8 {[%clk 0:00:42]} 24. f4 {[%clk 0:00:44]}  Nc6 {[%clk 0:00:36]} 25. Rde1+ {[%clk 0:00:38]}  Kd8 {[%clk 0:00:36]} 26. Re3 {[%clk 0:00:38]}  Rxe3 {[%clk 0:00:32]} 27. Qxe3 {[%clk 0:00:39]}  Qe7 {[%clk 0:00:31]} 28. Qxe7+ {[%clk 0:00:36]}  Kxe7 {[%clk 0:00:31]} 29. g4 {[%clk 0:00:30]}  f5 {[%clk 0:00:28]} 30. gxf5 {[%clk 0:00:26]}  gxf5 {[%clk 0:00:29]} 31. Nf1 {[%clk 0:00:21]}  Kf6 {[%clk 0:00:26]} 32. Ne3 {[%clk 0:00:21]}  Ne7 {[%clk 0:00:25]} 33. Kc2 {[%clk 0:00:21]}  c6 {[%clk 0:00:25]} 34. Kd3 {[%clk 0:00:21]}  d5 {[%clk 0:00:25]} 35. Rh5 {[%clk 0:00:16]}  Kg6 {[%clk 0:00:24]} 36. Rg5+ {[%clk 0:00:16]}  Kf6 {[%clk 0:00:25]} 37. Rh5 {[%clk 0:00:15]}  Kg6 {[%clk 0:00:24]} 38. Rh2 {[%clk 0:00:15]}  Bh6 {[%clk 0:00:23]} 39. Rg2+ {[%clk 0:00:14]}  Kf6 {[%clk 0:00:23]} 40. Rf2 {[%clk 0:00:13]}  c5 {[%clk 0:00:23]} 41. b3 {[%clk 0:00:10]}  b6 {[%clk 0:00:21]} 42. a4 {[%clk 0:00:11]}  a6 {[%clk 0:00:20]} 43. Ke2 {[%clk 0:00:11]}  d4 {[%clk 0:00:19]} 44. cxd4 {[%clk 0:00:11]}  cxd4 {[%clk 0:00:20]} 45. Nc4 {[%clk 0:00:11]}  b5 {[%clk 0:00:20]} 46. axb5 {[%clk 0:00:11]}  axb5 {[%clk 0:00:20]} 47. Na3 {[%clk 0:00:11]}  Nd5 {[%clk 0:00:21]} 48. Nxb5 {[%clk 0:00:11]}  Nxf4+ {[%clk 0:00:22]} 49. Kd1 {[%clk 0:00:10]}  Ne6 {[%clk 0:00:23]} 50. Rh2 {[%clk 0:00:09]}  Be3 {[%clk 0:00:23]} 51. Ra2 {[%clk 0:00:07]}  Ke5 {[%clk 0:00:24]} 52. Na3 {[%clk 0:00:07]}  f4 {[%clk 0:00:24]} 53. Nc4+ {[%clk 0:00:07]}  Ke4 {[%clk 0:00:24]} 54. Nd6+ {[%clk 0:00:06]}  Kd3 {[%clk 0:00:24]} 55. b4 {[%clk 0:00:07]}  f3 {[%clk 0:00:22]} 56. Ra3# {[%clk 0:00:08]} 1-0


[Site "https://www.chess.com"]

[Event "Titled Tuesday Blitz March 21 Late 2023"]
[White "lisjakzlatko1"]
[Black "Kostiukov, Alexandr"]
[BlackFideId "14108100"]
[WhiteElo "2183"]
[BlackElo "2202"]
[Result "0-1"]
[Round "04"]
[TimeControl "180+2"]
[Date "2023.03.21"]
[WhiteClock "0:00:12"]
[BlackClock "0:00:15"]

1. e4 {[%clk 0:03:00]}  c5 {[%clk 0:02:57]} 2. b4 {[%clk 0:02:59]}  cxb4 {[%clk 0:02:56]} 3. Bb2 {[%clk 0:03:00]}  Nf6 {[%clk 0:02:52]} 4. e5 {[%clk 0:02:52]}  Nd5 {[%clk 0:02:52]} 5. a3 {[%clk 0:02:50]}  bxa3 {[%clk 0:02:48]} 6. Nxa3 {[%clk 0:02:49]}  e6 {[%clk 0:02:30]} 7. Qg4 {[%clk 0:02:44]}  Qb6 {[%clk 0:02:19]} 8. Nc4 {[%clk 0:02:40]}  Qc7 {[%clk 0:02:11]} 9. Nd6+ {[%clk 0:02:31]}  Bxd6 {[%clk 0:02:04]} 10. exd6 {[%clk 0:02:29]}  Qxc2 {[%clk 0:01:55]} 11. Qxg7 {[%clk 0:02:29]}  Rf8 {[%clk 0:01:50]} 12. Rc1 {[%clk 0:02:27]}  Qe4+ {[%clk 0:01:46]} 13. Be2 {[%clk 0:02:20]}  Nc6 {[%clk 0:01:38]} 14. Nf3 {[%clk 0:02:15]}  Nf4 {[%clk 0:01:27]} 15. Kf1 {[%clk 0:01:26]}  Qxe2+ {[%clk 0:01:12]} 16. Kg1 {[%clk 0:01:27]}  Nd3 {[%clk 0:00:59]} 17. Rf1 {[%clk 0:01:24]}  Nxb2 {[%clk 0:00:50]} 18. h4 {[%clk 0:01:22]}  Nd3 {[%clk 0:00:43]} 19. h5 {[%clk 0:01:21]}  Qe4 {[%clk 0:00:35]} 20. Rh4 {[%clk 0:01:19]}  Qf5 {[%clk 0:00:28]} 21. Ng5 {[%clk 0:01:17]}  Qe5 {[%clk 0:00:18]} 22. Qh6 {[%clk 0:01:06]}  Rh8 {[%clk 0:00:16]} 23. Re4 {[%clk 0:01:03]}  Qxd6 {[%clk 0:00:16]} 24. Qg7 {[%clk 0:01:03]}  Qf8 {[%clk 0:00:15]} 25. Qf6 {[%clk 0:01:02]}  Ne7 {[%clk 0:00:13]} 26. h6 {[%clk 0:00:54]}  Nc5 {[%clk 0:00:13]} 27. Rc4 {[%clk 0:00:50]}  b6 {[%clk 0:00:13]} 28. d4 {[%clk 0:00:50]}  Ba6 {[%clk 0:00:12]} 29. dxc5 {[%clk 0:00:45]}  Bxc4 {[%clk 0:00:12]} 30. Rc1 {[%clk 0:00:46]}  b5 {[%clk 0:00:09]} 31. Ne4 {[%clk 0:00:44]}  Nd5 {[%clk 0:00:08]} 32. Qe5 {[%clk 0:00:41]}  Rg8 {[%clk 0:00:06]} 33. Nd6+ {[%clk 0:00:40]}  Kd8 {[%clk 0:00:06]} 34. Qh5 {[%clk 0:00:37]}  Rg6 {[%clk 0:00:06]} 35. g3 {[%clk 0:00:35]}  Qxh6 {[%clk 0:00:05]} 36. Qd1 {[%clk 0:00:33]}  e5 {[%clk 0:00:03]} 37. Nxc4 {[%clk 0:00:31]}  bxc4 {[%clk 0:00:02]} 38. Rxc4 {[%clk 0:00:31]}  Rb6 {[%clk 0:00:03]} 39. cxb6 {[%clk 0:00:29]}  axb6 {[%clk 0:00:04]} 40. Rc1 {[%clk 0:00:27]}  Nf6 {[%clk 0:00:03]} 41. Rb1 {[%clk 0:00:25]}  Rb8 {[%clk 0:00:03]} 42. Qf3 {[%clk 0:00:23]}  Rc8 {[%clk 0:00:04]} 43. Rd1 {[%clk 0:00:20]}  e4 {[%clk 0:00:05]} 44. Qf4 {[%clk 0:00:19]}  Qxf4 {[%clk 0:00:04]} 45. gxf4 {[%clk 0:00:20]}  b5 {[%clk 0:00:05]} 46. Rb1 {[%clk 0:00:18]}  Rb8 {[%clk 0:00:06]} 47. Kg2 {[%clk 0:00:19]}  b4 {[%clk 0:00:07]} 48. Rb3 {[%clk 0:00:18]}  d5 {[%clk 0:00:06]} 49. f5 {[%clk 0:00:18]}  Kd7 {[%clk 0:00:07]} 50. Kg3 {[%clk 0:00:18]}  Kd6 {[%clk 0:00:08]} 51. Kf4 {[%clk 0:00:18]}  Kc5 {[%clk 0:00:08]} 52. Ke5 {[%clk 0:00:18]}  Nd7+ {[%clk 0:00:08]} 53. Kf4 {[%clk 0:00:16]}  Rb7 {[%clk 0:00:09]} 54. Kg5 {[%clk 0:00:15]}  Kc4 {[%clk 0:00:09]} 55. Kf4 {[%clk 0:00:16]}  Kxb3 {[%clk 0:00:09]} 56. Ke3 {[%clk 0:00:16]}  Kc4 {[%clk 0:00:09]} 57. Kd2 {[%clk 0:00:15]}  b3 {[%clk 0:00:10]} 58. Ke3 {[%clk 0:00:15]}  d4+ {[%clk 0:00:11]} 59. Kf4 {[%clk 0:00:15]}  b2 {[%clk 0:00:12]} 60. Kxe4 {[%clk 0:00:15]}  b1=Q+ {[%clk 0:00:13]} 61. Kf4 {[%clk 0:00:15]}  d3 {[%clk 0:00:14]} 62. f3 {[%clk 0:00:15]}  d2 {[%clk 0:00:15]} 63. Kg5 {[%clk 0:00:14]}  d1=Q {[%clk 0:00:16]} 64. Kf4 {[%clk 0:00:14]}  Qd2+ {[%clk 0:00:14]} 65. Kg3 {[%clk 0:00:12]}  Rb6 {[%clk 0:00:15]} 0-1


[Site "https://www.chess.com"]

[Event "Titled Tuesday Blitz March 21 Late 2023"]
[White "Jimenez Fernandez, Rebeca"]
[Black "Vifleemskaia, Svetlana"]
[WhiteFideId "32070934"]
[BlackFideId "4129490"]
[WhiteElo "2008"]
[BlackElo "1930"]
[Result "1-0"]
[Round "04"]
[TimeControl "180+2"]
[Date "2023.03.21"]
[WhiteClock "0:00:25"]
[BlackClock "0:00:02"]

1. e4 {[%clk 0:03:00]}  e5 {[%clk 0:02:58]} 2. d4 {[%clk 0:03:00]}  exd4 {[%clk 0:02:57]} 3. Qxd4 {[%clk 0:03:01]}  Nc6 {[%clk 0:02:56]} 4. Qe3 {[%clk 0:03:01]}  Nf6 {[%clk 0:02:57]} 5. Nc3 {[%clk 0:03:01]}  h5 {[%clk 0:02:54]} 6. Bd2 {[%clk 0:03:01]}  Ng4 {[%clk 0:02:53]} 7. Qg3 {[%clk 0:02:37]}  Bc5 {[%clk 0:02:49]} 8. Nh3 {[%clk 0:02:30]}  d6 {[%clk 0:02:35]} 9. O-O-O {[%clk 0:02:09]}  Be6 {[%clk 0:02:16]} 10. f4 {[%clk 0:02:05]}  h4 {[%clk 0:01:10]} 11. Qe1 {[%clk 0:02:04]}  g6 {[%clk 0:00:50]} 12. f5 {[%clk 0:02:02]}  Bd7 {[%clk 0:00:45]} 13. fxg6 {[%clk 0:01:52]}  Qf6 {[%clk 0:00:35]} 14. Nd5 {[%clk 0:01:35]}  Qxg6 {[%clk 0:00:24]} 15. Nxc7+ {[%clk 0:01:26]}  Ke7 {[%clk 0:00:24]} 16. Nf4 {[%clk 0:01:10]}  Qg7 {[%clk 0:00:13]} 17. Nfd5+ {[%clk 0:01:05]}  Kd8 {[%clk 0:00:05]} 18. Bc3 {[%clk 0:00:55]}  f6 {[%clk 0:00:05]} 19. Nxa8 {[%clk 0:00:41]}  Bb6 {[%clk 0:00:05]} 20. Naxb6 {[%clk 0:00:39]}  axb6 {[%clk 0:00:05]} 21. h3 {[%clk 0:00:29]}  Nge5 {[%clk 0:00:04]} 22. Nxb6 {[%clk 0:00:30]}  Kc7 {[%clk 0:00:04]} 23. Nxd7 {[%clk 0:00:29]}  Kxd7 {[%clk 0:00:03]} 24. Qd2 {[%clk 0:00:27]}  Qe7 {[%clk 0:00:02]} 25. Bb5 {[%clk 0:00:25]} 1-0


[Site "https://www.chess.com"]

[Event "Titled Tuesday Blitz March 21 Late 2023"]
[White "Winkels, Marcel"]
[Black "Prieto Aranguren, Alain"]
[WhiteFideId "1003887"]
[BlackFideId "2268906"]
[WhiteElo "1900"]
[BlackElo "2209"]
[Result "0-1"]
[Round "04"]
[TimeControl "180+2"]
[Date "2023.03.21"]
[WhiteClock "0:00:03"]
[BlackClock "0:00:09"]

1. e4 {[%clk 0:03:00]}  a5 {[%clk 0:02:53]} 2. Nf3 {[%clk 0:02:59]}  c5 {[%clk 0:02:52]} 3. Bc4 {[%clk 0:02:59]}  Nc6 {[%clk 0:02:52]} 4. O-O {[%clk 0:02:55]}  e5 {[%clk 0:02:53]} 5. c3 {[%clk 0:02:53]}  d6 {[%clk 0:02:53]} 6. d4 {[%clk 0:02:51]}  Bg4 {[%clk 0:02:52]} 7. h3 {[%clk 0:02:46]}  Bxf3 {[%clk 0:02:52]} 8. Qxf3 {[%clk 0:02:45]}  Qf6 {[%clk 0:02:52]} 9. Qxf6 {[%clk 0:02:35]}  Nxf6 {[%clk 0:02:52]} 10. dxe5 {[%clk 0:02:35]}  Nxe5 {[%clk 0:02:51]} 11. Bd5 {[%clk 0:02:32]}  Nxd5 {[%clk 0:02:46]} 12. exd5 {[%clk 0:02:32]}  Nd3 {[%clk 0:02:42]} 13. Bg5 {[%clk 0:02:23]}  Nxb2 {[%clk 0:02:39]} 14. Re1+ {[%clk 0:02:21]}  Kd7 {[%clk 0:02:38]} 15. Nd2 {[%clk 0:02:21]}  Na4 {[%clk 0:02:36]} 16. Rab1 {[%clk 0:02:15]}  Kc7 {[%clk 0:02:27]} 17. c4 {[%clk 0:02:10]}  h6 {[%clk 0:02:17]} 18. Bh4 {[%clk 0:02:05]}  g5 {[%clk 0:02:05]} 19. Bg3 {[%clk 0:02:04]}  f5 {[%clk 0:02:04]} 20. f4 {[%clk 0:02:02]}  Bg7 {[%clk 0:01:56]} 21. Re6 {[%clk 0:01:48]}  Bd4+ {[%clk 0:01:54]} 22. Kh2 {[%clk 0:01:44]}  Rae8 {[%clk 0:01:42]} 23. Rbe1 {[%clk 0:01:39]}  Rxe6 {[%clk 0:01:42]} 24. Rxe6 {[%clk 0:01:37]}  gxf4 {[%clk 0:01:24]} 25. Bxf4 {[%clk 0:01:37]}  Rd8 {[%clk 0:01:13]} 26. Nb3 {[%clk 0:01:36]}  Nb6 {[%clk 0:00:56]} 27. Nxa5 {[%clk 0:01:31]}  Bc3 {[%clk 0:00:39]} 28. Nb3 {[%clk 0:01:25]}  Nxc4 {[%clk 0:00:38]} 29. Nxc5 {[%clk 0:01:22]}  Be5 {[%clk 0:00:33]} 30. Bxe5 {[%clk 0:01:16]}  dxe5 {[%clk 0:00:28]} 31. Re7+ {[%clk 0:01:00]}  Kd6 {[%clk 0:00:25]} 32. Rxb7 {[%clk 0:00:43]}  Kxc5 {[%clk 0:00:25]} 33. Rh7 {[%clk 0:00:38]}  Kxd5 {[%clk 0:00:24]} 34. Rxh6 {[%clk 0:00:38]}  e4 {[%clk 0:00:24]} 35. Rh5 {[%clk 0:00:37]}  Ke5 {[%clk 0:00:23]} 36. g4 {[%clk 0:00:37]}  Rf8 {[%clk 0:00:19]} 37. g5 {[%clk 0:00:36]}  e3 {[%clk 0:00:19]} 38. Rh7 {[%clk 0:00:35]}  Ke4 {[%clk 0:00:16]} 39. Re7+ {[%clk 0:00:34]}  Ne5 {[%clk 0:00:16]} 40. Kg2 {[%clk 0:00:32]}  f4 {[%clk 0:00:16]} 41. g6 {[%clk 0:00:31]}  f3+ {[%clk 0:00:16]} 42. Kf1 {[%clk 0:00:31]}  Rb8 {[%clk 0:00:15]} 43. Kg1 {[%clk 0:00:15]}  e2 {[%clk 0:00:14]} 44. Kf2 {[%clk 0:00:14]}  Rb1 {[%clk 0:00:12]} 45. Rxe5+ {[%clk 0:00:11]}  Kxe5 {[%clk 0:00:12]} 46. g7 {[%clk 0:00:11]}  e1=Q+ {[%clk 0:00:12]} 47. Kxf3 {[%clk 0:00:11]}  Qf1+ {[%clk 0:00:11]} 48. Ke3 {[%clk 0:00:10]}  Re1+ {[%clk 0:00:11]} 49. Kd2 {[%clk 0:00:09]}  Qf2+ {[%clk 0:00:11]} 50. Kc3 {[%clk 0:00:09]}  Re3+ {[%clk 0:00:11]} 51. Kb4 {[%clk 0:00:09]}  Qf4+ {[%clk 0:00:11]} 52. Kc5 {[%clk 0:00:08]}  Rg3 {[%clk 0:00:11]} 53. h4 {[%clk 0:00:05]}  Rxg7 {[%clk 0:00:10]} 54. h5 {[%clk 0:00:05]}  Qd4+ {[%clk 0:00:10]} 55. Kc6 {[%clk 0:00:05]}  Qd5+ {[%clk 0:00:10]} 56. Kb6 {[%clk 0:00:05]}  Rd7 {[%clk 0:00:09]} 57. h6 {[%clk 0:00:04]}  Rd6+ {[%clk 0:00:09]} 58. Kc7 {[%clk 0:00:03]}  Qc5+ {[%clk 0:00:09]} 59. Kb7 {[%clk 0:00:03]}  Rb6+ {[%clk 0:00:09]} 0-1


[Site "https://www.chess.com"]

[Event "Titled Tuesday Blitz March 21 Late 2023"]
[White "Jimenez, Joaquin"]
[Black "Marcolino, Daniel Mattos"]
[WhiteFideId "109860"]
[BlackFideId "2106841"]
[WhiteElo "2163"]
[BlackElo "2109"]
[Result "1-0"]
[Round "04"]
[TimeControl "180+2"]
[Date "2023.03.21"]
[WhiteClock "0:00:17"]
[BlackClock "0:00:06"]

1. e4 {[%clk 0:03:00]}  c6 {[%clk 0:02:59]} 2. d4 {[%clk 0:02:59]}  d5 {[%clk 0:03:00]} 3. Nd2 {[%clk 0:02:59]}  dxe4 {[%clk 0:03:00]} 4. Nxe4 {[%clk 0:03:00]}  Nd7 {[%clk 0:03:01]} 5. Bd3 {[%clk 0:02:59]}  Ngf6 {[%clk 0:03:01]} 6. Ng5 {[%clk 0:02:58]}  e6 {[%clk 0:02:59]} 7. Qe2 {[%clk 0:02:59]}  Bd6 {[%clk 0:02:58]} 8. N1f3 {[%clk 0:02:57]}  h6 {[%clk 0:02:58]} 9. Ne4 {[%clk 0:02:58]}  Nxe4 {[%clk 0:02:58]} 10. Qxe4 {[%clk 0:02:58]}  Qc7 {[%clk 0:02:58]} 11. Qg4 {[%clk 0:02:56]}  Kf8 {[%clk 0:02:58]} 12. O-O {[%clk 0:02:53]}  b6 {[%clk 0:02:42]} 13. b3 {[%clk 0:02:47]}  Bb7 {[%clk 0:02:42]} 14. Bb2 {[%clk 0:02:46]}  Nf6 {[%clk 0:02:43]} 15. Qh4 {[%clk 0:02:46]}  Nd5 {[%clk 0:02:34]} 16. Ne5 {[%clk 0:02:38]}  c5 {[%clk 0:02:26]} 17. Nc4 {[%clk 0:02:29]}  Be7 {[%clk 0:02:17]} 18. Qg4 {[%clk 0:02:20]}  Bf6 {[%clk 0:02:08]} 19. Rad1 {[%clk 0:02:08]}  Nb4 {[%clk 0:02:04]} 20. dxc5 {[%clk 0:01:56]}  Bxb2 {[%clk 0:01:51]} 21. cxb6 {[%clk 0:01:54]}  axb6 {[%clk 0:01:43]} 22. Nxb2 {[%clk 0:01:53]}  Nxd3 {[%clk 0:01:34]} 23. Nxd3 {[%clk 0:01:48]}  Rxa2 {[%clk 0:01:28]} 24. c4 {[%clk 0:01:37]}  Ra5 {[%clk 0:01:09]} 25. Qd4 {[%clk 0:01:28]}  Rg5 {[%clk 0:00:55]} 26. f3 {[%clk 0:01:28]}  h5 {[%clk 0:00:53]} 27. Qf4 {[%clk 0:01:13]}  Qxf4 {[%clk 0:00:43]} 28. Nxf4 {[%clk 0:01:12]}  Ke7 {[%clk 0:00:41]} 29. Rd2 {[%clk 0:01:08]}  Rd8 {[%clk 0:00:35]} 30. Rxd8 {[%clk 0:01:04]}  Kxd8 {[%clk 0:00:36]} 31. Kf2 {[%clk 0:01:02]}  h4 {[%clk 0:00:32]} 32. Ra1 {[%clk 0:00:57]}  Ra5 {[%clk 0:00:24]} 33. Rxa5 {[%clk 0:00:54]}  bxa5 {[%clk 0:00:25]} 34. Nh5 {[%clk 0:00:51]}  g5 {[%clk 0:00:17]} 35. Nf6 {[%clk 0:00:48]}  Ke7 {[%clk 0:00:13]} 36. Ng4 {[%clk 0:00:47]}  Kd6 {[%clk 0:00:13]} 37. Ke3 {[%clk 0:00:45]}  Kc5 {[%clk 0:00:13]} 38. Kd2 {[%clk 0:00:38]}  Kb4 {[%clk 0:00:13]} 39. Kc2 {[%clk 0:00:38]}  h3 {[%clk 0:00:11]} 40. gxh3 {[%clk 0:00:37]}  Bxf3 {[%clk 0:00:11]} 41. Ne5 {[%clk 0:00:37]}  Be4+ {[%clk 0:00:08]} 42. Kb2 {[%clk 0:00:37]}  f6 {[%clk 0:00:09]} 43. Nd7 {[%clk 0:00:34]}  f5 {[%clk 0:00:08]} 44. Ne5 {[%clk 0:00:18]}  f4 {[%clk 0:00:08]} 45. Ng4 {[%clk 0:00:18]}  Bf3 {[%clk 0:00:09]} 46. Nf2 {[%clk 0:00:17]}  e5 {[%clk 0:00:06]} 47. Nd3# {[%clk 0:00:17]} 1-0


[Site "https://www.chess.com"]

[Event "Titled Tuesday Blitz March 21 Late 2023"]
[White "Movahed, Sina"]
[Black "Bortnyk, Olexandr"]
[WhiteFideId "42520835"]
[BlackFideId "14120828"]
[WhiteElo "2225"]
[BlackElo "2734"]
[Result "1-0"]
[Round "05"]
[TimeControl "180+2"]
[Date "2023.03.21"]
[WhiteClock "0:00:57"]
[BlackClock "0:00:36"]

1. Nf3 {[%clk 0:03:00]}  Nf6 {[%clk 0:03:00]} 2. c4 {[%clk 0:03:00]}  b6 {[%clk 0:03:00]} 3. d4 {[%clk 0:03:00]}  Bb7 {[%clk 0:03:01]} 4. g3 {[%clk 0:03:00]}  g6 {[%clk 0:03:02]} 5. Bg2 {[%clk 0:03:00]}  Bg7 {[%clk 0:03:03]} 6. O-O {[%clk 0:03:01]}  O-O {[%clk 0:03:03]} 7. Nc3 {[%clk 0:03:02]}  Ne4 {[%clk 0:03:03]} 8. Bd2 {[%clk 0:02:52]}  Re8 {[%clk 0:03:03]} 9. Qc2 {[%clk 0:02:49]}  Nxd2 {[%clk 0:03:03]} 10. Qxd2 {[%clk 0:02:49]}  d6 {[%clk 0:02:58]} 11. d5 {[%clk 0:02:49]}  c5 {[%clk 0:02:55]} 12. Rad1 {[%clk 0:02:39]}  Nd7 {[%clk 0:02:54]} 13. b3 {[%clk 0:02:37]}  a6 {[%clk 0:02:47]} 14. e4 {[%clk 0:02:36]}  b5 {[%clk 0:02:45]} 15. Rfe1 {[%clk 0:02:27]}  Qa5 {[%clk 0:02:39]} 16. Rc1 {[%clk 0:02:25]}  Reb8 {[%clk 0:02:28]} 17. Qe3 {[%clk 0:02:11]}  bxc4 {[%clk 0:02:25]} 18. bxc4 {[%clk 0:02:10]}  Bc8 {[%clk 0:02:26]} 19. Rc2 {[%clk 0:02:08]}  Ne5 {[%clk 0:02:21]} 20. Nd2 {[%clk 0:02:04]}  Rb4 {[%clk 0:02:10]} 21. Qe2 {[%clk 0:02:03]}  Rab8 {[%clk 0:02:06]} 22. h3 {[%clk 0:02:01]}  Rb2 {[%clk 0:01:55]} 23. Rec1 {[%clk 0:02:01]}  Rxc2 {[%clk 0:01:42]} 24. Rxc2 {[%clk 0:02:02]}  Rb4 {[%clk 0:01:34]} 25. f4 {[%clk 0:01:57]}  Nd7 {[%clk 0:01:35]} 26. Kh2 {[%clk 0:01:55]}  Bxc3 {[%clk 0:01:31]} 27. Rxc3 {[%clk 0:01:53]}  Qxa2 {[%clk 0:01:27]} 28. Qe3 {[%clk 0:01:34]}  Nb6 {[%clk 0:01:22]} 29. e5 {[%clk 0:01:34]}  Kf8 {[%clk 0:00:41]} 30. exd6 {[%clk 0:01:24]}  exd6 {[%clk 0:00:42]} 31. f5 {[%clk 0:01:25]}  Bxf5 {[%clk 0:00:40]} 32. Qh6+ {[%clk 0:01:24]}  Kg8 {[%clk 0:00:40]} 33. Re3 {[%clk 0:01:24]}  Bd7 {[%clk 0:00:39]} 34. Ne4 {[%clk 0:01:23]}  Qb2 {[%clk 0:00:36]} 35. Qh4 {[%clk 0:00:57]} 1-0


[Site "https://www.chess.com"]

[Event "Titled Tuesday Blitz March 21 Late 2023"]
[White "Moussard, Jules"]
[Black "Sjugirov, Sanan"]
[WhiteFideId "642908"]
[BlackFideId "4189302"]
[WhiteElo "2610"]
[BlackElo "2569"]
[Result "0-1"]
[Round "05"]
[TimeControl "180+2"]
[Date "2023.03.21"]
[WhiteClock "0:00:02"]
[BlackClock "0:00:07"]

1. e4 {[%clk 0:02:52]}  e6 {[%clk 0:02:58]} 2. d4 {[%clk 0:02:49]}  d5 {[%clk 0:02:58]} 3. e5 {[%clk 0:02:49]}  c5 {[%clk 0:02:58]} 4. c3 {[%clk 0:02:50]}  Qb6 {[%clk 0:02:57]} 5. Nf3 {[%clk 0:02:46]}  Nc6 {[%clk 0:02:57]} 6. Be2 {[%clk 0:02:35]}  Nge7 {[%clk 0:02:43]} 7. dxc5 {[%clk 0:02:26]}  Qxc5 {[%clk 0:02:40]} 8. b4 {[%clk 0:02:23]}  Qb6 {[%clk 0:02:40]} 9. b5 {[%clk 0:02:18]}  Na5 {[%clk 0:02:38]} 10. O-O {[%clk 0:02:11]}  Nf5 {[%clk 0:02:35]} 11. Bd3 {[%clk 0:02:11]}  Bc5 {[%clk 0:02:27]} 12. Nbd2 {[%clk 0:02:05]}  O-O {[%clk 0:02:16]} 13. Nb3 {[%clk 0:01:46]}  Nxb3 {[%clk 0:02:07]} 14. axb3 {[%clk 0:01:46]}  Qd8 {[%clk 0:01:23]} 15. Qe2 {[%clk 0:01:24]}  Bd7 {[%clk 0:01:15]} 16. Ba3 {[%clk 0:01:12]}  Qe7 {[%clk 0:01:08]} 17. Bxc5 {[%clk 0:01:05]}  Qxc5 {[%clk 0:01:08]} 18. c4 {[%clk 0:01:03]}  dxc4 {[%clk 0:01:03]} 19. bxc4 {[%clk 0:01:02]}  a5 {[%clk 0:00:51]} 20. Be4 {[%clk 0:00:49]}  Rfb8 {[%clk 0:00:40]} 21. Rfd1 {[%clk 0:00:44]}  Be8 {[%clk 0:00:36]} 22. Qc2 {[%clk 0:00:25]}  h6 {[%clk 0:00:25]} 23. Rd2 {[%clk 0:00:17]}  Ne7 {[%clk 0:00:17]} 24. h4 {[%clk 0:00:15]}  Kf8 {[%clk 0:00:16]} 25. g3 {[%clk 0:00:11]}  Ra7 {[%clk 0:00:15]} 26. Kg2 {[%clk 0:00:08]}  b6 {[%clk 0:00:15]} 27. Rd6 {[%clk 0:00:06]}  Rc7 {[%clk 0:00:14]} 28. Qd2 {[%clk 0:00:02]}  Qxc4 {[%clk 0:00:11]} 29. Rd4 {[%clk 0:00:02]}  Qc5 {[%clk 0:00:09]} 30. Ra2 {[%clk 0:00:02]}  Rbc8 {[%clk 0:00:09]} 31. Rc2 {[%clk 0:00:02]}  Qxb5 {[%clk 0:00:09]} 32. Rxc7 {[%clk 0:00:02]}  Rxc7 {[%clk 0:00:10]} 33. Rd8 {[%clk 0:00:03]}  Rd7 {[%clk 0:00:09]} 34. Rxd7 {[%clk 0:00:02]}  Qxd7 {[%clk 0:00:10]} 35. Qb2 {[%clk 0:00:02]}  Qb5 {[%clk 0:00:10]} 36. Qd4 {[%clk 0:00:02]}  Nd5 {[%clk 0:00:07]} 37. Bxd5 {[%clk 0:00:02]}  Qxd5 {[%clk 0:00:08]} 38. Qxb6 {[%clk 0:00:02]}  Bc6 {[%clk 0:00:07]} 39. Qb8+ {[%clk 0:00:02]}  Ke7 {[%clk 0:00:07]} 40. Qa7+ {[%clk 0:00:02]}  Bb7 {[%clk 0:00:07]} 0-1


[Site "https://www.chess.com"]

[Event "Titled Tuesday Blitz March 21 Late 2023"]
[White "Andreikin, Dmitry"]
[Black "Ashraf, Artin"]
[WhiteFideId "4158814"]
[BlackFideId "22514805"]
[WhiteElo "2736"]
[BlackElo "2188"]
[Result "1-0"]
[Round "05"]
[TimeControl "180+2"]
[Date "2023.03.21"]
[WhiteClock "0:01:16"]
[BlackClock "0:01:11"]

1. d4 {[%clk 0:03:00]}  d5 {[%clk 0:02:57]} 2. c4 {[%clk 0:03:01]}  e6 {[%clk 0:02:58]} 3. Nc3 {[%clk 0:02:59]}  a6 {[%clk 0:02:59]} 4. cxd5 {[%clk 0:02:56]}  exd5 {[%clk 0:03:00]} 5. Qb3 {[%clk 0:02:54]}  c6 {[%clk 0:02:57]} 6. Nf3 {[%clk 0:02:50]}  Nf6 {[%clk 0:02:40]} 7. Bg5 {[%clk 0:02:49]}  Be7 {[%clk 0:02:40]} 8. e3 {[%clk 0:02:49]}  O-O {[%clk 0:02:40]} 9. Bd3 {[%clk 0:02:49]}  Ne8 {[%clk 0:02:39]} 10. Bf4 {[%clk 0:02:36]}  Bd6 {[%clk 0:02:39]} 11. O-O {[%clk 0:02:29]}  Bxf4 {[%clk 0:02:38]} 12. exf4 {[%clk 0:02:30]}  Nd6 {[%clk 0:02:37]} 13. Rfe1 {[%clk 0:02:29]}  Nd7 {[%clk 0:02:36]} 14. h3 {[%clk 0:02:26]}  Nf6 {[%clk 0:02:32]} 15. Ne5 {[%clk 0:02:22]}  Rb8 {[%clk 0:02:29]} 16. Nxc6 {[%clk 0:02:19]}  bxc6 {[%clk 0:01:53]} 17. Qxb8 {[%clk 0:02:20]}  Nb5 {[%clk 0:01:51]} 18. Nxb5 {[%clk 0:02:15]}  axb5 {[%clk 0:01:51]} 19. a4 {[%clk 0:02:09]}  Qa5 {[%clk 0:01:41]} 20. axb5 {[%clk 0:02:00]}  Qd2 {[%clk 0:01:40]} 21. Red1 {[%clk 0:01:56]}  Qxb2 {[%clk 0:01:35]} 22. Rab1 {[%clk 0:01:54]}  Qc3 {[%clk 0:01:24]} 23. Qc7 {[%clk 0:01:25]}  Bd7 {[%clk 0:01:13]} 24. b6 {[%clk 0:01:23]}  Rc8 {[%clk 0:01:11]} 25. Qa7 {[%clk 0:01:16]} 1-0


[Site "https://www.chess.com"]